Cogmind - Beta 15 @@@ ROGUE MODE // 2025.06.24 @ 20:34:43 Player: 7604 Result: Destroyed by R7-ETO(j) with Overtuned Pulse Rifle Performance ------------- Evolutions (0) 0 Regions Visited (4) 800 Robots Destroyed (25) 125 Value Destroyed (585) 585 Prototype IDs (31) 620 Alien Tech Used (0) 0 Bonus (1069) 1069 TOTAL SCORE: 3199 Bonus ------- Follower Combat Kills 306 Registered with UFD 300 Met Optimus in HQ 500 Friendly Fire -37 Cogmind --------- Core Integrity 0/250 Matter 300/300 Energy 85/100 System Corruption 1% Temperature Cool (27) Movement Treading (305) Ox2 Location -7/Scraptown Parts ------- > --- POWER (1) -------- (None) > --- PROPULSION (2) --- Advanced Treads > --- UTILITY (2) ------ High-capacity Storage Unit Medium Reactive Plating > --- WEAPON (2) ------- Datajack > --- INVENTORY (20) --- Meta Core Light Treads Improved Titanium Leg Improved Titanium Leg Arachnoskeleton Potential Leg Structural Scanner Seismic Detector Seismic Detector 0b10 Decoder Chip [Looter] Makeshift Transmission Jammer Improved Shield Generator Makeshift Hacking Suite A0-MCA's Component Scanner Rocket Launcher Multitool DM-GVY's Chainsaw Peak State ------------ > --- POWER ------------ Fission Core > --- PROPULSION ------- Armored Huge Wheel > --- UTILITY ---------- High-capacity Storage Unit Medium Reactive Plating > --- WEAPON ----------- Datajack DM-GVY's Chainsaw > --- INVENTORY -------- Meta Core Light Treads Advanced Treads Improved Titanium Leg Improved Titanium Leg Arachnoskeleton Structural Scanner Seismic Detector Seismic Detector 0b10 Decoder Chip [Looter] Transmission Jammer Improved Shield Generator Hacking Suite A0-MCA's Component Scanner Grenade Launcher Rocket Launcher Multitool Makeshift Spear [Rating: 36] Favorites ----------- Power Subdweller Power Source Engine Subdweller Power Source Power Core Fission Core Propulsion Light Treads Treads Light Treads Leg Aluminum Leg Wheel Armored Huge Wheel Utility High-capacity Storage Unit Device V3-11A's Pendant Storage High-capacity Storage Unit Protection Medium Reactive Plating Weapon Datajack Energy Cannon Beam Cannon Ballistic Gun Subdweller Machine Gun Launcher Subdweller Shrapnel Launcher Slashing Weapon DM-GVY's Chainsaw Piercing Weapon Makeshift Spear Special Melee Weapon Datajack Build | -11 -10 -10 -7 -7 ------- Run | Yrd Mat Sub Rec Scr Slots Evolved . | . . . . . Power . | . . . . . Propulsion . | . . . . . Utility . | . . . . . Weapon . | . . . . . Parts Attached 32 | 1 12 10 3 6 Power 4 | . 1 2 . 1 Engine 3 | . 1 2 . . Core 1 | . . . . 1 Reactor . | . . . . . Propulsion 7 | . 2 2 1 2 Treads 6 | . 2 2 1 1 Leg . | . . . . . Wheel 1 | . . . . 1 Hover . | . . . . . Flight . | . . . . . Utility 10 | 1 5 2 1 1 Device 5 | 1 2 1 1 . Storage 2 | . 2 . . . Processor . | . . . . . Hackware . | . . . . . Protection 3 | . 1 1 . 1 Artifact . | . . . . . Weapon 11 | . 4 4 1 2 Energy Gun . | . . . . . Energy Cannon 3 | . 2 1 . . Ballistic Gun 3 | . 2 1 . . Ballistic Cannon . | . . . . . Launcher 2 | . . 2 . . Special Weapon . | . . . . . Impact Weapon . | . . . . . Slashing Weapon 1 | . . . . 1 Piercing Weapon 1 | . . . . 1 Special Melee Weapon 1 | . . . 1 . Unidentified Prototypes 1 | . . 1 . . Parts Lost 7 | . 1 3 . 3 Power 3 | . 1 1 . 1 Propulsion 3 | . . 2 . 1 Utility . | . . . . . Weapon 1 | . . . . 1 Highest Loss Streak 3 | . 1 2 . 3 To Critical Strikes 1 | . . 1 . . Average Backups 16 | 6 12 19 18 15 Power . | 1 . 1 1 . Propulsion 3 | 4 1 2 2 4 Utility 7 | . 5 9 8 6 Weapon 3 | 1 4 4 4 2 Tool/Special . | . . . . . Unused Backups 34 | . 6 6 2 20 Power 3 | . 1 1 . 1 Propulsion 11 | . 4 . 1 6 Utility 13 | . 1 3 1 8 Weapon 5 | . . 2 . 3 Tool/Special 2 | . . . . 2 Average Slot Usage (%) 95 | . 99 99 100 89 Engine 8 | . 13 13 14 1 Core 2 | . . . . 6 Treads 25 | . 25 28 28 23 Device 11 | . 13 13 14 7 Storage 14 | . 14 14 14 14 Protection 2 | . . . . 6 Energy Cannon 9 | . 19 14 13 . Ballistic Gun 4 | . 8 11 . . Launcher 3 | . . 1 14 1 Piercing Weapon 4 | . . . . 10 Special Melee Weapon 5 | . . . . 14 Peak Build Rating 36 | 7 10 16 17 36 Average Rating 15 | 6 8 14 15 20 On Entrance 10 | 6 7 9 16 15 Naked Turns . | . . . . . Heaviest Build 75 | 13 50 62 62 75 Greatest Support 42 | 20 40 40 40 42 Greatest Overweight (x) 2 | . 1 2 1 2 Average Overweight (x) . | . . 1 1 1 Largest Inventory Capacity 20 | 8 20 20 20 20 Average Capacity 19 | 8 17 20 20 20 Most Carried 20 | 6 20 20 20 20 Average Carried 17 | 6 12 19 19 18 Final Capacity 20 | 8 20 20 20 20 Final Carried 20 | 6 20 20 20 19 Class Distribution -------------------- 100% | Mutant Dominant Class ---------------- Mutant | -10/Materials Mutant | -10/Subcaves Mutant | -7/Recycling Mutant | -7/Scraptown Resources | -11 -10 -10 -7 -7 ----------- Run | Yrd Mat Sub Rec Scr Matter Collected 809 | 252 240 202 20 95 Remotely . | . . . . . Salvage Created 884 | 70 557 257 . . Parts 55 | 6 32 17 . . Haulers Intercepted 2 | . 2 . . . Recyclers Shooed 2 | 1 . . 1 . Parts Field Recycled . | . . . . . Retrieved Matter . | . . . . . Parts Self-Destructed 16 | . . 16 . . Prevented . | . . . . . Kills | -11 -10 -10 -7 -7 ------- Run | Yrd Mat Sub Rec Scr Combat Hostiles Destroyed 17 | . 10 7 . . Guns 3 | . 2 1 . . Cannons 13 | . 8 5 . . AOE 1 | . . 1 . . Classes Destroyed 9 | 2 5 2 . . Tunneler 1 | 1 . . . . Hauler 2 | . 2 . . . Recycler 2 | 1 1 . . . Operator 1 | . 1 . . . Watcher 2 | . 2 . . . Swarmer 6 | . 4 2 . . Grunt 8 | . 6 2 . . Artisan 1 | . . 1 . . Subdweller 3 | . . 3 . . Best Kill Streak 5 | 2 5 2 . . Combat Bots Only 5 | . 5 2 . . Max Kills in Single Turn 1 | 1 1 1 . . Gunslinging . | . . . . . Exploded 1 | . . 1 . . Melee . | . . . . . Uniques/NPCs Destroyed . | . . . . . Combat | -11 -10 -10 -7 -7 -------- Run | Yrd Mat Sub Rec Scr Hostile Shots Fired 126 | . 48 38 . 40 Missed 33 | . 12 15 . 6 Hits 93 | . 36 23 . 34 Projectile 93 | . 36 23 . 34 AOE 1 | . . 1 . . Critical Strikes 4 | . . 1 . 3 Damage Taken 1459 | . 463 526 . 470 Core 258 | . 43 151 . 64 Absorbed by Shields . | . . . . . Redirected to Shielding 13 | . . 13 . . Ignored by Resistances 35 | . . . . 35 Core Remaining (%) 100 | 100 . . . . Volleys Fired 88 | 7 33 45 1 2 Largest 2 | 2 2 2 1 1 Hottest 120 | 40 120 120 80 30 Shots Fired 142 | 14 66 60 1 1 Gun 55 | 14 20 21 . . Cannon 84 | . 46 37 1 . Launcher 3 | . . 2 . 1 Special . | . . . . . Kinetic 56 | 14 20 22 . . Thermal 84 | . 46 37 1 . Explosive 2 | . . 1 . 1 Electromagnetic . | . . . . . Robot Hit Streak 11 | 6 9 11 5 . Robot Miss Streak 4 | 1 4 1 . . Penetration Max . | . . . . . Secondary Targets 1 | . 1 . . . Max Gunslinging Chain 1 | . 1 . . . Shots Hit Robots 77 | 9 38 27 1 2 Core Hits 37 | 3 19 12 . 3 Critical Kills . | . . . . . Critical Parts Destroyed . | . . . . . Critical Strikes . | . . . . . Melee Attacks 4 | . . . . 4 Impact . | . . . . . Slashing 1 | . . . . 1 Piercing 1 | . . . . 1 Sneak Attacks 2 | . . . . 2 Combat Hostiles . | . . . . . Follow-up Attacks . | . . . . . Damage Inflicted 1543 | 108 650 691 40 54 Guns 393 | 108 173 112 . . Cannons 905 | . 461 417 27 . Explosions 216 | . . 162 . 54 Melee . | . . . . . Ramming 29 | . 16 . 13 . Kinetic 498 | 108 173 217 . . Thermal 905 | . 461 417 27 . Explosive 111 | . . 57 . 54 Electromagnetic . | . . . . . Impact . | . . . . . Slashing . | . . . . . Piercing . | . . . . . Highest Corruption 1 | . . . . 1 Average Corruption 1 | . . . . 1 Corruption Purged . | . . . . . Corruption Blocked . | . . . . . Effects 1 | . . . . 1 Weapon Failures 1 | . . . . 1 Overload Shots . | . . . . . Overflow Damage . | . . . . . Projectiles . | . . . . . Explosions . | . . . . . Melee . | . . . . . Knockbacks . | . . . . . Impact . | . . . . . Kinetic . | . . . . . Secondary . | . . . . . Self-Inflicted Damage 37 | . . 37 . . Shots 1 | . . 1 . . Rammed 5 | . 2 . 3 . Targets Rammed 5 | . 2 . 3 . Kicked . | . . . . . Crushed . | . . . . . Highest Temperature 280 | 6 280 31 30 47 Average Temperature 77 | 6 92 17 16 29 Received Heat Transfer 507 | . 156 72 . 279 Effects 1 | . 1 . . . Interference 1 | . 1 . . . Siege Activations . | . . . . . Martial Activations . | . . . . . Shielding Activations . | . . . . . Robots Disrupted . | . . . . . Combat Hostiles . | . . . . . Robots Corrupted . | . . . . . Combat Hostiles . | . . . . . Parts Fried . | . . . . . Impact Corruptions . | . . . . . Robots Melted . | . . . . . Combat Hostiles . | . . . . . Parts Melted 3 | . 2 1 . . Heat Transferred 1776 | . 962 777 37 . Parts Sabotaged . | . . . . . Parts Stolen . | . . . . . Parts Stripped . | . . . . . Power Chain Reactions . | . . . . . Alert | -11 -10 -10 -7 -7 ------- Run | Yrd Mat Sub Rec Scr Maximum Alert Level . | . . . . . Low Security (%) 100 | 100 100 . 100 . Level 1 . | . . . . . Level 2 . | . . . . . Level 3 . | . . . . . Level 4 . | . . . . . Level 5 . | . . . . . High Security . | . . . . . Max Security . | . . . . . Peak Influence 168 | 10 168 . 102 . Initial 69 | . . . 69 . Average 49 | 2 66 . 29 . Influence Increases 1032 | 10 434 273 315 . Destroy 0b10 Robot/C 460 | . 200 180 80 . Destroy 0b10 Robot/NC 40 | 10 30 . . . Destroy Leader 78 | . 68 10 . . Allied During Kill 43 | . . 23 20 . Successful Hack 17 | . 14 . 3 . Select Force Hacks 240 | . 30 . 210 . Disable Machine 15 | . 15 . . . Destroy Structure 4 | . 2 . 2 . Lose Combat Pursuer 135 | . 75 60 . . Influence Decreases 1032 | 10 327 235 423 37 Entered New Map 165 | . . 52 76 37 Time Decay 756 | 10 317 83 346 . Lost Part 30 | . 10 20 . . Lost Ally 81 | . . 80 1 . Squads Dispatched 2 | . 2 . . . Investigation 2 | . 2 . . . Extermination . | . . . . . Reinforcement . | . . . . . Assault . | . . . . . Garrison . | . . . . . Intercept . | . . . . . Searches Triggered . | . . . . . Construction Impeded . | . . . . . Haulers Reinforced . | . . . . . Active Scanning Responses . | . . . . . Cargo Convoy Interrupts . | . . . . . Stealth | -11 -10 -10 -7 -7 --------- Run | Yrd Mat Sub Rec Scr Distress Signals . | . . . . . Communications Jammed . | . . . . . Distress Signals . | . . . . . Times Spotted 49 | . 22 15 1 11 Peak Tracking Total 6 | . 6 4 1 4 Tactical Retreats 4 | . 3 1 . . Traps | -11 -10 -10 -7 -7 ------- Run | Yrd Mat Sub Rec Scr Traps Triggered 3 | . 3 . . . Indirectly . | . . . . . Trap Hack Attempts . | . . . . . Triggered . | . . . . . Disarmed . | . . . . . Reprogrammed . | . . . . . Reused . | . . . . . Traps Extracted . | . . . . . Installed . | . . . . . Triggered . | . . . . . Machines | -11 -10 -10 -7 -7 ---------- Run | Yrd Mat Sub Rec Scr Machines Disabled 8 | . 1 5 . 2 Max in Single Turn 3 | . 1 3 . 1 Machines Repaired . | . . . . . Machines Dismantled . | . . . . . Machines Sabotaged . | . . . . . Overloaded Fab Kills . | . . . . . Hacking | -11 -10 -10 -7 -7 --------- Run | Yrd Mat Sub Rec Scr Machines Accessed 24 | . 9 1 10 4 Terminals 11 | . 8 . 3 . Fabricators . | . . . . . Repair Stations . | . . . . . Recycling Units 8 | . 1 . 7 . Scanalyzers . | . . . . . Garrison Access . | . . . . . Total Hacks 60 | . 21 1 28 10 Successful 33 | . 9 1 13 10 Failed 26 | . 11 . 15 . Catastrophic 3 | . 2 . 1 . Database Lockouts 1 | . 1 . . . Manual 34 | . 20 . 14 . Terminals 25 | . 19 . 6 . Fabricators . | . . . . . Repair Stations . | . . . . . Recycling Units 24 | . 2 . 22 . Scanalyzers . | . . . . . Garrison Access . | . . . . . Terminal Hacks 13 | . 2 1 . 10 Record 3 | . . . . 3 Robot Analysis 8 | . 2 . . 6 Proto ID Catalog 2 | . . 1 . 1 Fabricator Hacks . | . . . . . Repair Station Hacks . | . . . . . Recycling Unit Hacks 5 | . 1 . 4 . Retrieve Components 5 | . 1 . 4 . Scanalyzer . | . . . . . Garrison Access Hacks . | . . . . . Unauthorized Hacks 15 | . 6 . 9 . Terminals 7 | . 5 . 2 . Botnet 1 | . . . 1 . Skim 6 | . 5 . 1 . Fabricators . | . . . . . Repair Stations . | . . . . . Recycling Units 8 | . 1 . 7 . Tunnel 8 | . 1 . 7 . Scanalyzers . | . . . . . Garrison Access . | . . . . . Data Cores Recovered 1 | . 1 . . . Used . | . . . . . Hacking Detections 15 | . 7 . 8 . Full Trace Events . | . . . . . Feedback Events . | . . . . . Feedback Blocked . | . . . . . Robot Schematics Acquired . | . . . . . Robots Built . | . . . . . Authchips . | . . . . . Time . | . . . . . Total Robot Build Rating . | . . . . . Part Schematics Acquired . | . . . . . Parts Built . | . . . . . Authchips . | . . . . . Time . | . . . . . Total Part Build Rating . | . . . . . Parts Repaired . | . . . . . Time . | . . . . . Parts Recycled . | . . . . . Recycled Matter . | . . . . . Retrieved Matter . | . . . . . Retrieved Components 6 | . . . 6 . Parts Scanalyzed . | . . . . . Part Schematics Acquired . | . . . . . Parts Damaged . | . . . . . Bothacking | -11 -10 -10 -7 -7 ------------ Run | Yrd Mat Sub Rec Scr Used RIF Installer . | . . . . . Robots Hacked 2 | . . . . 2 Non-combat . | . . . . . Combat 2 | . . . . 2 Robot Hacks Applied 2 | . . . . 2 parse_system 2 | . . . . 2 Relay Couplers Released . | . . . . . Fabnet Peak Effective % . | . . . . . Robots Rewired . | . . . . . Allies Hacked . | . . . . . Hacks Repelled . | . . . . . Allies | -11 -10 -10 -7 -7 -------- Run | Yrd Mat Sub Rec Scr Total Allies 11 | . . 11 . . Largest Group 5 | . . 5 5 4 Highest-Rated Group 97 | . . 97 97 76 Highest-Rated Ally 21 | . . 21 21 19 Total Orders . | . . . . . Ally Attacks 82 | . . 31 21 30 Total Damage 1421 | . . 536 436 449 Kills 14 | . . 5 4 5 Allies Corrupted . | . . . . . Allies Melted 2 | . . . . 2 Intel | -11 -10 -10 -7 -7 ------- Run | Yrd Mat Sub Rec Scr Active Infowar (turns) 4895 | 11 1735 556 518 2075 Structural 2593 | . . . 518 2075 Seismic 2302 | 11 1735 556 . . Robot Analysis Total 8 | . 2 . . 6 Derelict Logs Recovered 6 | . . 1 . 5 Drone Launches . | . . . . . Drone Recoveries . | . . . . . Exploration | -11 -10 -10 -7 -7 ------------- Run | Yrd Mat Sub Rec Scr Turns Passed 10057 | 40 1805 2732 1465 4015 Spaces Moved 4081 | 15 788 1072 596 1610 Core . | . . . . . Treads 3731 | . 668 1072 596 1395 Legs 135 | 15 120 . . . Wheels 215 | . . . . 215 Hover . | . . . . . Flight . | . . . . . Fastest Speed 120 | 120 120 240 240 130 Average Speed 226 | 120 202 240 240 224 Slowest Speed 320 | 120 240 320 240 240 Overloaded Moves . | . . . . . Propulsion Burnouts . | . . . . . Robots Hopped . | . . . . . Potential Cave-ins . | . . . . . Cave-ins Triggered . | . . . . . Exploration Rate (%) 72 | 2 99 73 99 87 Regions Visited 4 Branch Regions 3 Pre-discovered Areas 11 | . 3 1 7 . Known Exits Taken 1 | . . 1 . . Unknown Exits Taken 3 | 1 1 . 1 . Scrap Searched 7 | . . 3 . 4 Spaces Dug 8 | . . 1 . 7 Terrain Destroyed 25 | . . 18 . 7 Melee . | . . . . . Projectile 2 | . . 2 . . AOE 23 | . . 16 . 7 Terrain Rammed . | . . . . . Walls Destroyed . | . . . . . Machines Disabled . | . . . . . Actions | -11 -10 -10 -7 -7 --------- Run | Yrd Mat Sub Rec Scr Total 4759 | 22 928 1171 628 2010 Wait 447 | . 61 19 16 351 Move 4077 | 14 787 1071 595 1610 Hop . | . . . . . Pick Up 51 | . 20 11 4 16 Fast Attach 6 | 1 . 1 . 4 Attach 4 | . 1 2 . 1 Detach 2 | . . . . 2 Swap 34 | . 17 11 3 3 Drop 41 | . 7 11 6 17 Fire 88 | 7 33 45 1 2 Melee 4 | . . . . 4 Ram . | . . . . . Kick . | . . . . . Crush 5 | . 2 . 3 . Escape Stasis . | . . . . . Rewire . | . . . . . Trap . | . . . . . Miscellaneous . | . . . . . Route ------- -11/Scrapyard -10/Materials (discovered 5 exits: *Mat x3 / [*Min] / *Sub) -10/Subcaves (discovered 3 exits: *Mat x2 / *Rec) -7/Recycling (discovered 2 exits: *Fac / *Scr) -7/Scraptown (discovered 1 exit: *Fac) History --------- Turn | Location | Event 23 | -11/Scrapyard | Discovered new exit (range 3) 41 | -11/Scrapyard | Entered Materials 181 | -10/Materials | Discovered new exit (range 8) 306 | -10/Materials | Build established: Mutant 387 | -10/Materials | Discovered new exit (range 16) 1134 | -10/Materials | Central database locked down 1142 | -10/Materials | Learned location of Subcaves (-10) 1144 | -10/Materials | Discovered new exit (range 10) 1165 | -10/Materials | Learned location of 2 exits from Subcaves 1180 | -10/Materials | Learned Storage stockpile data 1182 | -10/Materials | Learned location of 1 exit from Recycling 1183 | -10/Materials | Learned Storage trap positions 1187 | -10/Materials | Identified exit to Materials 1346 | -10/Materials | Discovered new exit (range 14) 1846 | -10/Materials | Entered Subcaves 1847 | -10/Subcaves | Approached by a straggling Scientist 1847 | -10/Subcaves | Identified exit to Materials 1847 | -10/Subcaves | Identified exit to Recycling 1850 | -10/Subcaves | Ambushed by Subdwellers from Twisted Machinery 2143 | -10/Subcaves | Shifting Twisted Machinery released Mak. Light Armor Plating 2181 | -10/Subcaves | Shifting Twisted Machinery released Flamer 2196 | -10/Subcaves | Core integrity fell below 50% 2434 | -10/Subcaves | Visited triangular shrine 2449 | -10/Subcaves | Found Prototype Device 2459 | -10/Subcaves | Identified V3-11A's Pendant 2464 | -10/Subcaves | Befriended Subdweller 2649 | -10/Subcaves | Visited 4L-MR0's lab 2674 | -10/Subcaves | Found Meta Core 2739 | -10/Subcaves | Befriended Subdweller 2904 | -10/Subcaves | Befriended Subdweller 2951 | -10/Subcaves | Shifting Twisted Machinery released Barrage Gun 2984 | -10/Subcaves | Befriended Subdweller 3047 | -10/Subcaves | Shifting Twisted Machinery released Mak. Light Armor Plating 3271 | -10/Subcaves | Learned location of Zion (-7) 3271 | -10/Subcaves | Met a Zionite searching for "candidates" 3279 | -10/Subcaves | A swath of the cavern ceiling suddenly collapsed 3654 | -10/Subcaves | Befriended Subdweller 3654 | -10/Subcaves | Befriended Subdweller 4224 | -10/Subcaves | Befriended Subdweller 4224 | -10/Subcaves | Befriended Subdweller 4278 | -10/Subcaves | A Subdweller sparked back to life 4278 | -10/Subcaves | A Subdweller sparked back to life 4278 | -10/Subcaves | A Subdweller sparked back to life 4279 | -10/Subcaves | Befriended Subdweller 4279 | -10/Subcaves | Befriended Subdweller 4279 | -10/Subcaves | Befriended Subdweller 4578 | -10/Subcaves | Entered Recycling 4578 | -7/Recycling | Accompanied by 5 allies 4579 | -7/Recycling | Identified exit to Factory 5512 | -7/Recycling | Found Arachnoskeleton 5983 | -7/Recycling | Scanned before Scraplab entrance 6011 | -7/Recycling | Discovered new exit (range 11) 6019 | -7/Recycling | Entered Scraplab 6043 | -7/Recycling | Entered Scraptown 6043 | -7/Scraptown | Accompanied by 4 allies 6223 | -7/Scraptown | Scanned Subdweller tech in exchange for log data 6228 | -7/Scraptown | Learned location of 1 exit from Lower Caves 6231 | -7/Scraptown | Learned Factory stockpile data 6233 | -7/Scraptown | Learned Factory garrison access intel 6235 | -7/Scraptown | Learned Research terminal intel 6238 | -7/Scraptown | Learned 12 Research zone layouts 6269 | -7/Scraptown | Discovered exit to Factory (range 11) 6670 | -7/Scraptown | Delivered V3-11A's Pendant to T0-NE2 in exchange for information 7072 | -7/Scraptown | Visited Cave Peace 7108 | -7/Scraptown | Visited The Evicted 7130 | -7/Scraptown | Visited Spacefarers 7194 | -7/Scraptown | Visited UFD Registry 7194 | -7/Scraptown | Registered with UFD as "Shortgunner" 7244 | -7/Scraptown | Visited A0-MCA Data Center 7278 | -7/Scraptown | Visited Scrapoid Research Area 7314 | -7/Scraptown | Visited Curators Association 7395 | -7/Scraptown | Visited Observation Area 7537 | -7/Scraptown | Delivered Scrap Shield to a Scientist 7729 | -7/Scraptown | Visited Scrap Suit Storage 7760 | -7/Scraptown | Visited Infowarlord's Domain 7816 | -7/Scraptown | Visited Science Guys 7898 | -7/Scraptown | Visited Analyses Database 7955 | -7/Scraptown | Visited Derelict Rescue Squad 7970 | -7/Scraptown | Found DRS Beacon 8019 | -7/Scraptown | Visited Junk Repository 8240 | -7/Scraptown | Visited Fellowship of the Rings 8261 | -7/Scraptown | Visited Assassins FH 8312 | -7/Scraptown | Visited Cyclists 8329 | -7/Scraptown | Entered Cyclist Reading Room 8517 | -7/Scraptown | Guru changed UFD alias to "Autodome" 9275 | -7/Scraptown | Visited CPS Storage 9467 | -7/Scraptown | Given a B- rating by A0-MCA 9471 | -7/Scraptown | Found A0-MCA's Component Scanner 9562 | -7/Scraptown | Met Optimus 9562 | -7/Scraptown | Accepted into 0bPrime 9962 | -7/Scraptown | Civil war broke out across Scraptown 9967 | -7/Scraptown | Found DM-GVY's Chainsaw 9977 | -7/Scraptown | Found Potential Leg 10026 | -7/Scraptown | Core integrity fell below 20% 10058 | -7/Scraptown | Destroyed by R7-ETO(j) with Overtuned Pulse Rifle Last Messages --------------- 10035_ AL-HLH(E) destroyed. 10036_ UU-FWM(E) heat short circuits Imp. Deuterium Engine. 10037_ Bolt penetrates UU-FWM(E). 10037_ ZT-L4O(j) destroyed. 10038_ UU-FWM(E) destroyed. 10040_ Penetrated by Bolt. 10045_ XP-Z26(g) destroyed. 10047_ 1N-QZG(j) destroyed. 10048_ System corrupted: Grenade Launcher failed to launch. 10048_ Penetrated by Bolt. 10049_ Critical hit (Burn: +50). 10050_ Fission Core destroyed. 10051_ Acquired 5 matter. 10051_ Penetrated by Bolt. 10052_ Grenade Launcher destroyed. 10055_ AL-HXH(h) destroyed. 10056_ Arm. Huge Wheel destroyed. 10058_ Acquired 10 matter. Map ----- +----------------------------------------------------+ | | | | | | | ?????????????????????????????????????????????????? | | ?????????????????????????????????????????????????? | | ?????????????????????????????????????????????????? | | ?????????????????????????????????????????????????? | | ?????????????????????????????????????????????????? | | ?????????????????????????????????????????????????? | | ?????????????????????????????????????????????????? | | ?????????????????????????????????????????????????? | | ?????????????????????????????????????????????????? | | ?????????????????????????????????????????????????? | | ?????????????????????????????????????????????????? | | ?????????????????????????#???????????????????????? | | ????????????????????????? ???????????????????????? | | ???????????????????????##;???????????????????????? | | ??????????????????????## ##?????????????????????? | | ?????????????????????## [##????????????????????? | | ????????????????????? ! =!%=????????????????????? | | ??????????????????????% ![!?????????????????????? | | ??????????????????????# * ?????????????????????? | | ###########???????????# [= #############?????????? | | ###########???????????#!![ #############?????????? | | #""""""""##???????????#*jj="""""""""""##?????????? | | #" &&" "##????????????#*@#""" X """""##?????????? | | #" "##???????????##!=#"""" """##?????????? | | #"" ""###############=[#""!" "##?????????? | | #" "###############=!#"""" """##?????????? | | #"" ""####""""""""###%%#"" """"##?????????? | | #" "####" X " ""##=*!# ""##?????????? | | #"" ""####" ""###!!# " "" ""##?????????? | | # ####"" """###=!#&" "" ""##?????????? | | # #### ###[=#" ##?????????? | | # #### ### *# "##?????????? | | ###### ########### #####% #" ###########?????????? | | ###### ########### ##### #" ###########?????????? | | """""" """"""""""" " """ R "############???????? | | !%= % [! %!!="############???????? | | =! =%!=*&%[## ##???????? | | ==R==!="## ##???????? | | %[%=%=%!## ##???????? | | ! !**[ %! ##???????? | | """"""""""""""""""""""""!%! ## ##???????? | | """""""""""""""""""""""" "############???????? | | #### ################"" "############???????? | | ###########"" [= "###########????????? | | X"????????##"" =%! "## #"""""# ????????? | | "" "" ##?????####"" * "## !!!!!# ???????? | | "" "" X"##########""*! "## ##"##?????? | +----------------------------------------------------+ Best States ------------- Heat Dissipation 39 Energy Generation 18 Energy Capacity 310 Matter Stores 300 Matter Capacity 300 Sight Range 16 Terrain Scan Density 10 Armor Coverage 225 Resistance: KI 30 Core Shielding 20 Evasion (%) 55 Recoil Reduction 2 Item Schematics ----------------- None Robot Schematics ------------------ None Fabricated ------------ Nothing Repaired ---------- Nothing Alien Tech Used ----------------- None Achievements -------------- None Challenges ------------ None Game ------ Seed SpacefoldGhostSlayer Manual? 0 Play Time 00:41:28 Cumulative 483.3 hours Start 2025.06.24 @ 19:54:34 End 2025.06.24 @ 20:34:43 Sessions 1 Manual Loads 0 Difficulty Rogue Special Mode None Game No. 253 Rogue 190 Adventurer 63 Explorer 0 Win Type - Total 9 Types 8/0/0/1/0/0/0/0/0/0 Lore% 90 Gallery% 81 Achievement% 67 Wizard Run 0 Options --------- Layout 1 ASCII 0 Keyboard 1 Movement Numpad Keybinds 0 Fullscreen 1 Font 24/Terminus Map View 50x35 Zoom Use 0% Tactical HUD 1 Map Filters NONE Filters NONE Steam 1 RUN: 00ba2130-a43d-4e9d-89e7-83eb1d6140d2